bitfinex/quotes_BTCUSD_20250620
["timestamp","ask_amount","ask_price","bid_price","bid_amount"]
[1750391878776,6.46063604,104740.0,104730.0,0.27299838]
[1750391878967,6.4701833,104740.0,104730.0,0.27299838]
[1750391879859,6.3985407,104740.0,104730.0,0.27299838]
[1750391880469,6.38899353,104740.0,104730.0,0.27299838]
[1750391880671,6.39854052,104740.0,104730.0,0.27299838]
[1750391881082,6.23523353,104740.0,104730.0,0.27299838]
[1750391881295,6.38899353,104740.0,104730.0,0.27299838]
[1750391881493,6.39854061,104740.0,104730.0,0.27299838]
[1750391881959,6.40808787,104740.0,104730.0,0.27299838]
[1750391882365,6.23854061,104740.0,104730.0,0.27299838]
[1750391883465,6.24808787,104740.0,104730.0,0.27299838]
[1750391883676,6.23854061,104740.0,104730.0,0.27299838]
[1750391884113,6.22899353,104740.0,104730.0,0.27299838]
[1750391884321,6.23854061,104740.0,104730.0,0.27299838]
[1750391884534,6.22899353,104740.0,104730.0,0.27299838]
[1750391886854,6.23854061,104740.0,104730.0,0.27299838]
[1750391887295,6.27770052,104740.0,104730.0,0.27299838]
[1750391887503,6.26815353,104740.0,104730.0,0.27299838]
[1750391887935,6.27770061,104740.0,104730.0,0.27299838]
[1750391888151,6.25860654,104740.0,104730.0,0.27299838]
[1750391888397,6.26815344,104740.0,104730.0,0.27299838]
[1750391888986,6.42815344,104740.0,104730.0,0.27299838]
[1750391889558,6.43770052,104740.0,104730.0,0.27299838]
[1750391889770,6.26815344,104740.0,104730.0,0.27299838]
[1750391889940,6.27770043,104740.0,104730.0,0.27299838]
[1750391891232,6.28724751,104740.0,104730.0,0.27299838]
[1750391892391,6.27770043,104740.0,104730.0,0.27299838]
[1750391892599,6.26815344,104740.0,104730.0,0.27299838]
[1750391893026,6.27770043,104740.0,104730.0,0.27299838]
[1750391893758,6.26815344,104740.0,104730.0,0.27299838]
[1750391893980,6.42815344,104740.0,104730.0,0.27299838]
[1750391894404,6.43770052,104740.0,104730.0,0.27299838]
[1750391894622,6.43770043,104740.0,104730.0,0.27299838]
[1750391895072,6.28724751,104740.0,104730.0,0.27299838]
[1750391895289,6.48774378,104740.0,104730.0,0.27299838]
[1750391895513,6.81881487,104740.0,104730.0,0.27299838]
[1750391897035,6.61831841,104740.0,104730.0,0.27299838]
[1750391897489,6.80926742,104740.0,104730.0,0.27299838]
[1750391898202,6.61831841,104740.0,104730.0,0.27299838]
[1750391902242,6.45513466,104740.0,104730.0,0.27299838]
[1750391903505,6.12406475,104740.0,104730.0,0.27299838]
[1750391903901,6.1145174,104740.0,104730.0,0.27299838]
[1750391904426,6.10497014,104740.0,104730.0,0.27299838]
[1750391905791,6.26497014,104740.0,104730.0,0.27299838]
[1750391907158,6.26496978,104740.0,104730.0,0.27299838]
[1750391907401,6.10496978,104740.0,104730.0,0.27299838]
[1750391909272,6.10496969,104740.0,104730.0,0.27299838]
[1750391910629,6.11451677,104740.0,104730.0,0.27299838]
[1750391912254,6.10496969,104740.0,104730.0,0.27299838]
[1750391912580,5.96075677,104740.0,104730.0,0.27299838]
[1750391912993,5.96075686,104740.0,104730.0,0.27299838]
[1750391913713,5.95120969,104740.0,104730.0,0.27299838]
[1750391913968,5.96075677,104740.0,104730.0,0.27299838]
[1750391914750,5.97030403,104740.0,104730.0,0.27299838]
[1750391915376,5.97030394,104740.0,104730.0,0.27299838]
[1750391915602,5.9798512,104740.0,104730.0,0.27299838]
[1750391916354,5.97030394,104740.0,104730.0,0.27299838]
[1750391917625,5.9798512,104740.0,104730.0,0.27299838]
[1750391918871,5.96075677,104740.0,104730.0,0.27299838]
[1750391921236,5.95120969,104740.0,104730.0,0.27299838]
[1750391921654,6.12075668,104740.0,104730.0,0.27299838]
[1750391921889,5.96075668,104740.0,104730.0,0.27299838]
[1750391922124,5.95120969,104740.0,104730.0,0.27299838]
[1750391922457,5.96075677,104740.0,104730.0,0.27299838]
[1750391922672,6.10492969,104740.0,104730.0,0.27299838]
[1750391923083,6.11447677,104740.0,104730.0,0.27299838]
[1750391923302,6.10492969,104740.0,104730.0,0.27299838]
[1750391924049,6.11447677,104740.0,104730.0,0.27299838]
[1750391924265,6.11447668,104740.0,104730.0,0.27299838]
[1750391924476,6.12402394,104740.0,104730.0,0.27299838]
[1750391924686,5.97030394,104740.0,104730.0,0.27299838]
[1750391926153,6.1708004,104740.0,104730.0,0.27299838]
[1750391926355,6.32431222,104740.0,104730.0,0.27299838]
[1750391926555,6.45509385,104740.0,104730.0,0.27299838]
[1750391927489,6.12402394,104740.0,104730.0,0.27299838]
[1750391928119,6.14696242,104740.0,104730.0,0.27299838]
[1750391928594,6.12402394,104740.0,104730.0,0.2634503]
[1750391928855,6.14696239,104740.0,104730.0,0.2634503]
[1750391929076,6.12402394,104740.0,104730.0,0.2634503]
[1750391929289,6.14696237,104740.0,104730.0,0.2634503]
[1750391929512,6.48757963,104740.0,104730.0,0.2634503]
[1750391930146,6.67852864,104740.0,104730.0,0.2634503]
[1750391931257,6.48757963,104740.0,104730.0,0.2634503]
[1750391931464,6.67852864,104740.0,104730.0,0.2634503]
[1750391931855,6.48757963,104740.0,104730.0,0.2634503]
[1750391932285,6.67852937,104740.0,104730.0,0.2634503]
[1750391932512,6.52480937,104740.0,104730.0,0.2634503]
[1750391932728,6.48564937,104740.0,104730.0,0.2634503]
[1750391934703,6.46271094,104740.0,104730.0,0.2634503]
[1750391935315,6.07507644,104740.0,104730.0,0.2634503]
[1750391935526,5.74400653,104740.0,104730.0,0.2634503]
[1750391937243,6.08400644,104740.0,104730.0,0.2634503]
[1750391937927,6.07445927,104740.0,104730.0,0.2634503]
[1750391938136,6.08400635,104740.0,104730.0,0.2634503]
[1750391938342,6.09355361,104740.0,104730.0,0.2634503]
[1750391938960,6.08400635,104740.0,104730.0,0.2634503]
[1750391939461,6.09355361,104740.0,104730.0,0.2634503]
[1750391941433,6.10310096,104740.0,104730.0,0.2634503]
[1750391941657,6.09355361,104740.0,104730.0,0.2634503]
[1750391942558,6.09355352,104740.0,104730.0,0.2634503]
[1750391944256,6.10310078,104740.0,104730.0,0.2634503]
[1750391944465,6.43417069,104740.0,104730.0,0.2634503]
[1750391945080,6.42462343,104740.0,104730.0,0.2634503]
[1750391945687,6.43417069,104740.0,104730.0,0.2634503]
[1750391946646,6.42462343,104740.0,104730.0,0.2634503]
[1750391947533,6.43417069,104740.0,104730.0,0.2634503]
[1750391949405,6.42462343,104740.0,104730.0,0.2634503]
[1750391949624,6.43417069,104740.0,104730.0,0.2634503]
[1750391951687,6.43417114,104740.0,104730.0,0.2634503]
[1750391952213,6.45710964,104740.0,104730.0,0.2634503]
[1750391952408,6.43417114,104740.0,104730.0,0.2634503]
[1750391952614,6.12603972,104740.0,104730.0,0.2634503]
[1750391953317,6.64805864,104740.0,104730.0,0.25390258]
[1750391953521,6.6480591,104740.0,104730.0,0.26345048]
[1750391953718,6.44756264,104740.0,104730.0,0.2729982]
[1750391953847,6.09355424,104740.0,104730.0,0.2729982]
[1750391954055,6.1164928,104740.0,104730.0,0.2729982]
[1750391954647,6.09355424,104740.0,104730.0,0.2729982]
[1750391955085,6.08400689,104740.0,104730.0,0.2729982]
[1750391955339,6.07445963,104740.0,104730.0,0.2729982]
[1750391955556,6.08152689,104740.0,104730.0,0.2729982]
[1750391956204,5.40029237,104740.0,104730.0,0.2729982]
[1750391956415,6.08152626,104740.0,104730.0,0.2729982]
[1750391958322,6.08152617,104740.0,104730.0,0.2729982]
[1750391958737,6.06243219,104740.0,104730.0,0.2729982]
[1750391958963,6.0624321,104740.0,104730.0,0.2729982]
[1750391959206,6.05288538,104740.0,104730.0,0.2729982]
[1750391959411,6.06243201,104740.0,104730.0,0.2729982]
[1750391960497,6.07197882,104740.0,104730.0,0.2729982]
[1750391963600,6.08152572,104740.0,104730.0,0.2729982]
[1750391963839,6.07197882,104740.0,104730.0,0.2729982]
[1750391964328,6.06797882,104740.0,104730.0,0.2729982]
[1750391964535,6.06797882,104740.0,104730.0,0.2739982]
[1750391964712,6.05843201,104740.0,104730.0,0.2739982]
[1750391965301,6.06797873,104740.0,104730.0,0.2739982]
[1750391968782,6.05843201,104740.0,104730.0,0.2739982]
[1750391969838,6.06797882,104740.0,104730.0,0.2739982]
[1750391972510,6.05843201,104740.0,104730.0,0.2739982]
[1750391972928,6.06797882,104740.0,104730.0,0.2739982]
[1750391975092,6.07752581,104740.0,104730.0,0.2739982]
[1750391976172,6.26847482,104740.0,104730.0,0.25490267]
[1750391976388,6.09662024,104740.0,104730.0,0.2739982]
[1750391976838,6.09662015,104740.0,104730.0,0.2739982]
[1750391977802,6.08707289,104740.0,104730.0,0.2739982]
[1750391978027,6.09662015,104740.0,104730.0,0.2739982]
[1750391979994,6.09662006,104740.0,104730.0,0.2739982]
[1750391980427,6.09662006,104740.0,104730.0,0.29190582]
[1750391981833,6.09662006,104740.0,104730.0,0.29190616]
[1750391982950,6.4276906,104740.0,104730.0,0.29190616]
[1750391983382,6.42769114,104740.0,104730.0,0.29190616]
[1750391984645,6.42769114,104740.0,104730.0,0.29190706]
[1750391984892,6.09662123,104740.0,104730.0,0.29190706]
[1750391987430,6.09662123,104740.0,104730.0,0.29190835]
[1750391988599,6.08707388,104740.0,104730.0,0.29190835]
[1750391990475,6.07752662,104740.0,104730.0,0.29190836]
[1750391992550,6.08707388,104740.0,104730.0,0.29190836]
[1750391993215,6.07752662,104740.0,104730.0,0.29190836]
[1750391993715,6.0584321,104740.0,104730.0,0.29190836]
[1750391993931,6.067979,104740.0,104730.0,0.29190836]
[1750391994883,6.0584321,104740.0,104730.0,0.29190836]
[1750391995451,6.40859626,104740.0,104730.0,0.21956675]
[1750391995681,6.40859626,104740.0,104730.0,0.24821082]
[1750391995910,6.82684166,104740.0,104730.0,0.21001867]
[1750391996110,6.80489631,104740.0,104730.0,0.21956703]
[1750391996315,6.79534932,104740.0,104730.0,0.21001867]
[1750391996519,6.79534932,104740.0,104730.0,0.2291153]
[1750391996728,6.79534932,104740.0,104730.0,0.21001867]
[1750391996934,6.79534932,104740.0,104730.0,0.21956703]
[1750391998616,6.79534932,104740.0,104730.0,0.21956093]
[1750391999305,6.79534932,104740.0,104730.0,0.2291092]
[1750391999522,6.82634932,104740.0,104730.0,0.01904533]
[1750391999745,6.81680206,104740.0,104730.0,0.01904533]
[1750391999958,6.80140206,104740.0,104730.0,0.01904533]
[1750392000591,6.80140206,104740.0,104730.0,0.21001257]
[1750392000729,6.80140206,104740.0,104730.0,0.20901257]
[1750392000940,6.78580206,104740.0,104730.0,0.20901257]
[1750392001150,6.78780206,104740.0,104730.0,0.20901257]
[1750392002567,6.78780206,104740.0,104730.0,0.01804533]
[1750392002782,6.78780206,104740.0,104730.0,0.20901257]
[1750392003433,6.78780206,104740.0,104730.0,0.01804533]
[1750392004086,6.78780206,104740.0,104730.0,0.01803863]
[1750392006516,6.82688206,104740.0,104730.0,0.01803863]
[1750392008073,6.82688206,104740.0,104730.0,0.20900587]
[1750392009563,6.82688206,104740.0,104730.0,0.01803863]
[1750392010193,6.8087415,104740.0,104730.0,0.01803863]
[1750392012555,6.8087415,104740.0,104730.0,0.01803738]
[1750392015400,6.8087415,104740.0,104730.0,0.01803817]
[1750392017336,6.8087415,104740.0,104730.0,0.04843817]
[1750392017989,6.8087415,104740.0,104730.0,0.04843972]
[1750392020988,6.8087415,104740.0,104730.0,0.23941128]
[1750392021207,6.8087415,104740.0,104730.0,0.04844404]
[1750392021420,6.9687415,104740.0,104730.0,0.23941128]
[1750392022227,6.9687415,104740.0,104730.0,0.04844404]
[1750392023739,6.9687415,104740.0,104730.0,0.04844812]
[1750392025813,6.6287415,104740.0,104730.0,0.04844812]
[1750392027872,6.9687415,104740.0,104730.0,0.04844812]
[1750392029088,6.9687415,104740.0,104730.0,0.03054127]
[1750392029368,6.9687415,104740.0,104730.0,0.04845965]
[1750392030027,6.9687415,104740.0,104730.0,0.23942689]
[1750392030402,6.9687415,104740.0,104730.0,0.04845965]
[1750392032116,6.9687415,104740.0,104730.0,0.04846053]
[1750392032539,6.9687415,104740.0,104730.0,0.23942777]
[1750392032961,6.9687415,104740.0,104730.0,0.04846053]
[1750392033807,6.9687415,104740.0,104730.0,0.23942777]
[1750392034910,6.9687415,104740.0,104730.0,0.23942831]
[1750392035395,6.9687415,104740.0,104730.0,0.04846107]
[1750392035611,6.9687415,104740.0,104730.0,0.23942831]
[1750392035795,6.9687415,104740.0,104730.0,0.24058831]
[1750392036011,6.9687415,104740.0,104730.0,0.04962107]
[1750392036243,6.8087415,104740.0,104730.0,0.04962107]
[1750392037317,6.8087415,104740.0,104730.0,0.24058831]
[1750392037544,6.8087415,104740.0,104730.0,0.25013667]
[1750392037765,6.8087415,104740.0,104730.0,0.25013671]
[1750392038186,6.8087415,104740.0,104730.0,0.24058835]
[1750392039055,6.8087415,104740.0,104730.0,0.24058842]
[1750392040560,6.8087415,104740.0,104730.0,0.22266851]
[1750392040981,6.8087415,104740.0,104730.0,0.2405885]
[1750392041186,6.8087415,104740.0,104730.0,0.22266851]
[1750392042346,6.8087415,104740.0,104730.0,0.24058869]
[1750392042591,6.8087415,104740.0,104730.0,0.04962145]
[1750392043427,6.8087415,104740.0,104730.0,0.03170127]
[1750392043646,6.8087415,104740.0,104730.0,0.0496218]
[1750392047412,6.8087415,104740.0,104730.0,0.0484618]
[1750392048479,6.90402043,104740.0,104730.0,0.0180618]
[1750392050282,6.90402043,104740.0,104730.0,0.00014127]
[1750392050498,5.2291206,104730.0,104720.0,0.23629408]
[1750392050710,5.91419973,104730.0,104720.0,0.2363412]
[1750392051125,5.89126042,104730.0,104720.0,0.2363412]
[1750392051873,6.37601033,104730.0,104720.0,0.03164712]
[1750392052074,6.39895205,104730.0,104720.0,0.03164712]
[1750392052283,6.76764805,104730.0,104720.0,0.01644712]
[1750392052950,6.43657814,104730.0,104720.0,0.01544712]
[1750392053189,6.43757814,104730.0,104720.0,0.01544712]
[1750392054485,6.43757814,104730.0,104720.0,0.03074712]
[1750392055116,6.43757814,104730.0,104720.0,0.03193712]
[1750392055751,6.43757814,104730.0,104720.0,0.2229226]
[1750392056385,6.43757814,104730.0,104720.0,0.03193712]
[1750392056598,6.43757814,104730.0,104720.0,0.2229226]
[1750392056818,6.43757814,104730.0,104720.0,0.23247187]
[1750392059660,6.47665814,104730.0,104720.0,0.24202105]
[1750392061242,6.46710978,104730.0,104720.0,0.04148639]
[1750392061444,6.46710978,104730.0,104720.0,0.23247187]
[1750392062138,6.46710978,104730.0,104720.0,0.03193712]
[1750392062316,6.46710978,104730.0,104720.0,0.23247187]
[1750392062756,6.46710978,104730.0,104720.0,0.24202105]
[1750392063428,6.46710978,104730.0,104720.0,0.25157005]
[1750392068732,6.46710978,104730.0,104720.0,0.23247187]
[1750392069187,6.46710978,104730.0,104720.0,0.03193712]
[1750392069400,6.46710978,104730.0,104720.0,0.04148639]
[1750392069816,6.46710978,104730.0,104720.0,0.03193712]
[1750392072175,6.46710978,104730.0,104720.0,0.04984986]
[1750392072827,6.46710978,104730.0,104720.0,0.04985005]
[1750392073271,6.79817969,104730.0,104720.0,0.04985005]
[1750392075313,6.79817969,104730.0,104720.0,0.04984993]
[1750392077779,6.79817969,104730.0,104720.0,0.24083541]
[1750392077994,6.79817969,104730.0,104720.0,0.04984993]
[1750392078635,6.46710978,104730.0,104720.0,0.04984993]
[1750392081079,6.46710978,104730.0,104720.0,0.04985487]
[1750392081758,6.46710978,104730.0,104720.0,0.24084035]
[1750392081973,6.46710978,104730.0,104720.0,0.25038953]
[1750392082855,6.46710978,104730.0,104720.0,0.25993862]
[1750392083938,6.46710978,104730.0,104720.0,0.25994536]
[1750392084157,6.46710978,104730.0,104720.0,0.26949436]
[1750392084397,6.08338254,104730.0,104720.0,0.28859189]
[1750392084625,5.70067491,104730.0,104720.0,0.28859189]
[1750392084869,0.67206991,104730.0,104720.0,0.28859189]
[1750392085581,0.67106991,104730.0,104720.0,0.28859189]
[1750392086028,1.00213982,104730.0,104720.0,0.28959189]
[1750392086714,1.00213982,104730.0,104720.0,0.28957406]
[1750392086991,1.01168736,104730.0,104720.0,0.28957406]
[1750392089433,1.01168736,104730.0,104720.0,0.2716674]
[1750392089651,1.01168736,104730.0,104720.0,0.28956989]
[1750392090086,0.34954754,104730.0,104720.0,0.28956989]
[1750392090519,1.01168736,104730.0,104720.0,0.28956989]
[1750392090933,1.00213982,104730.0,104720.0,0.28956989]
[1750392091364,1.01168736,104730.0,104720.0,0.28956989]
[1750392091825,1.00213982,104730.0,104720.0,0.28956989]
[1750392092251,1.01168736,104730.0,104720.0,0.28956391]
[1750392092673,1.00213982,104730.0,104720.0,0.28956391]
[1750392095678,1.00213982,104730.0,104720.0,0.28955975]
[1750392096102,1.00213982,104730.0,104720.0,0.2716674]
[1750392103575,1.01168736,104730.0,104720.0,0.2716674]
[1750392105468,1.02123508,104730.0,104720.0,0.2716674]
[1750392106333,1.01168736,104730.0,104720.0,0.2716674]
[1750392107201,1.02123508,104730.0,104720.0,0.2716674]
[1750392108929,1.01168736,104730.0,104720.0,0.2716674]
[1750392109363,1.02123508,104730.0,104720.0,0.2716674]
[1750392110932,1.01168736,104730.0,104720.0,0.2716674]
[1750392112476,1.02123508,104730.0,104720.0,0.2716674]
[1750392113139,1.01168736,104730.0,104720.0,0.2716674]
[1750392113373,1.02123508,104730.0,104720.0,0.2716674]
[1750392115332,1.03078289,104730.0,104720.0,0.2716674]
[1750392118836,1.04033097,104730.0,104720.0,0.2716674]
[1750392119916,1.23129821,104730.0,104720.0,0.24183087]
[1750392120147,6.26945212,104730.0,104720.0,0.25137977]
[1750392120390,6.24080851,104730.0,104720.0,0.20158169]
[1750392121016,6.26950151,104730.0,104720.0,0.20158169]
[1750392122094,6.26950151,104730.0,104720.0,0.21113069]
[1750392122736,6.26950151,104730.0,104720.0,0.22067959]
[1750392125849,6.26950151,104730.0,104720.0,0.21113069]
[1750392126526,6.26950151,104730.0,104720.0,0.20158169]
[1750392127973,6.26950151,104730.0,104720.0,0.21113069]
[1750392129116,6.07853427,104730.0,104720.0,0.23022822]
[1750392129349,6.26950151,104730.0,104720.0,0.22067959]
[1750392129566,6.26950151,104730.0,104720.0,0.2302284]
[1750392130241,6.26917495,104730.0,104720.0,0.2302284]
[1750392130454,6.27872331,104730.0,104720.0,0.2302284]
[1750392131350,6.27872331,104730.0,104720.0,0.2460284]
[1750392132232,6.27872331,104730.0,104720.0,0.25557712]
[1750392132658,6.27872331,104730.0,104720.0,0.2460284]
[1750392132879,6.27872331,104730.0,104720.0,0.22693069]
[1750392133142,6.26917513,104730.0,104720.0,0.21113069]
[1750392133356,6.26917513,104730.0,104720.0,0.22067959]
[1750392135128,6.26917513,104730.0,104720.0,0.21113069]
[1750392136263,6.26917513,104730.0,104720.0,0.22067959]
[1750392138361,6.26917513,104730.0,104720.0,0.21113069]
[1750392138781,6.26917513,104730.0,104720.0,0.25167959]
[1750392140330,6.26917513,104730.0,104720.0,0.2612284]
[1750392140542,6.26917513,104730.0,104720.0,0.27077712]
[1750392140991,6.26917513,104730.0,104720.0,0.27201712]
[1750392141362,6.26917513,104730.0,104720.0,0.2624684]
[1750392142004,6.06304056,104730.0,104720.0,0.2624684]
[1750392142215,5.92950169,104730.0,104720.0,0.2624684]
[1750392144762,5.92950169,104730.0,104720.0,0.27201712]
[1750392149238,6.26950169,104730.0,104720.0,0.27201712]
[1750392149680,6.26950169,104730.0,104720.0,0.2624684]
[1750392151008,6.26950169,104730.0,104720.0,0.25291959]
[1750392151223,6.26950169,104730.0,104720.0,0.24337069]
[1750392151443,6.26950169,104730.0,104720.0,0.25291959]
[1750392153833,6.26950169,104730.0,104720.0,0.23258187]
[1750392154060,6.2924429,104730.0,104720.0,0.25168014]
[1750392157222,6.28289463,104730.0,104720.0,0.25168014]
[1750392157449,6.28289463,104730.0,104720.0,0.24920014]
[1750392162150,6.28289463,104730.0,104720.0,0.25037014]
[1750392162811,6.28288723,104730.0,104720.0,0.25037014]
[1750392166715,6.28288723,104730.0,104720.0,0.25991914]
[1750392169191,6.25995342,104730.0,104720.0,0.26946758]
[1750392170366,6.2695015,104730.0,104720.0,0.26946712]
[1750392171115,6.08808189,104730.0,104720.0,0.26946666]
[1750392171576,6.08808125,104730.0,104720.0,0.26946666]
[1750392172223,6.07853317,104730.0,104720.0,0.26946666]
[1750392172465,6.08808116,104730.0,104720.0,0.26946666]
[1750392172892,6.05943782,104730.0,104720.0,0.26946666]
[1750392173114,6.04029245,104730.0,104720.0,0.26946666]
[1750392175537,6.03074482,104730.0,104720.0,0.26946666]
[1750392175752,6.04029245,104730.0,104720.0,0.26946666]
[1750392176216,6.04984026,104730.0,104720.0,0.26946666]
[1750392176495,6.04029245,104730.0,104720.0,0.26946666]
[1750392176779,5.69967491,104730.0,104720.0,0.26946666]
[1750392177251,6.03074482,104730.0,104720.0,0.26946666]
[1750392177768,6.04984008,104730.0,104720.0,0.26946666]
[1750392178466,5.70922245,104730.0,104720.0,0.26946666]
[1750392178690,5.71877017,104730.0,104720.0,0.26946666]
[1750392179351,5.73786606,104730.0,104720.0,0.26946666]
[1750392180048,5.74741424,104730.0,104720.0,0.26946666]
[1750392180710,6.07848415,104730.0,104720.0,0.26946666]
[1750392180934,6.07848488,104730.0,104720.0,0.26946666]
[1750392181605,6.29814576,104730.0,104720.0,0.25991794]
[1750392181876,6.09763016,104730.0,104720.0,0.25991794]
[1750392186287,6.09763016,104730.0,104720.0,0.27783153]
[1750392188338,6.2885974,104730.0,104720.0,0.27783153]
[1750392188791,6.07853371,104730.0,104720.0,0.27783153]
[1750392189024,6.08808125,104730.0,104720.0,0.27783153]
[1750392191292,6.08808125,104730.0,104720.0,0.25991794]
[1750392192173,6.1071777,104730.0,104720.0,0.25991794]
[1750392192401,6.1071777,104730.0,104720.0,0.25991803]
[1750392192616,6.29814576,104730.0,104720.0,0.25991803]
[1750392193493,6.10717852,104730.0,104720.0,0.27783236]
[1750392194356,6.09763016,104730.0,104720.0,0.28738099]
[1750392195269,6.27904959,104730.0,104720.0,0.24918602]
[1750392195500,6.27904959,104730.0,104720.0,0.25873556]
[1750392196165,6.27904959,104730.0,104720.0,0.26828446]
[1750392196381,6.27904959,104730.0,104720.0,0.25036959]
[1750392197261,6.31812959,104730.0,104720.0,0.25036959]
[1750392198994,6.31812959,104730.0,104720.0,0.2599184]
[1750392199690,6.31812959,104730.0,104720.0,0.25036959]
[1750392199914,6.31812959,104730.0,104720.0,0.24919959]
[1750392200361,6.31812959,104730.0,104720.0,0.2587484]
[1750392200661,6.31812959,104730.0,104720.0,0.2599484]
[1750392202531,6.31812959,104730.0,104720.0,0.26949712]
[1750392202740,6.32767795,104730.0,104720.0,0.26949712]
[1750392202951,6.13671071,104730.0,104720.0,0.26949712]
[1750392203178,6.12716235,104730.0,104720.0,0.25994803]
[1750392204291,6.32767795,104730.0,104720.0,0.25994803]
[1750392204540,6.12716235,104730.0,104720.0,0.26949666]
[1750392204775,6.12716235,104730.0,104720.0,0.25994803]
[1750392205210,6.12716235,104730.0,104720.0,0.26949666]
[1750392206530,6.11761408,104730.0,104720.0,0.26949666]
[1750392208096,6.12716235,104730.0,104720.0,0.26949666]
[1750392208417,6.11761408,104730.0,104720.0,0.26949666]
[1750392208516,6.10806563,104730.0,104720.0,0.26949666]
[1750392209757,6.11761371,104730.0,104720.0,0.26949666]
[1750392210287,6.11761317,104730.0,104720.0,0.26949666]
[1750392210548,6.12716116,104730.0,104720.0,0.26949666]
[1750392210800,6.15007993,104730.0,104720.0,0.26949666]
[1750392212464,5.48794002,104730.0,104720.0,0.26949666]
[1750392212718,6.15007984,104730.0,104720.0,0.26949666]
[1750392214845,6.14053185,104730.0,104720.0,0.26949666]
[1750392215064,6.11761317,104730.0,104720.0,0.26949666]
[1750392215275,6.12716116,104730.0,104720.0,0.26949666]
[1750392217243,6.08808116,104730.0,104720.0,0.26949666]
[1750392224818,6.07853317,104730.0,104720.0,0.26949666]
[1750392224964,6.08808116,104730.0,104720.0,0.26949666]
[1750392225176,6.08808107,104730.0,104720.0,0.26949666]
[1750392225748,6.07853317,104730.0,104720.0,0.26949666]
[1750392226346,6.08808116,104730.0,104720.0,0.26949666]
[1750392226573,6.07853317,104730.0,104720.0,0.26949666]
[1750392228381,6.08808107,104730.0,104720.0,0.26949666]
[1750392228906,5.42594125,104730.0,104720.0,0.26949666]
[1750392229113,6.08808107,104730.0,104720.0,0.26949666]
[1750392231581,6.09762915,104730.0,104720.0,0.26949666]
[1750392232065,6.09762906,104730.0,104720.0,0.26949666]
[1750392233307,6.06893606,104730.0,104720.0,0.26949666]
[1750392235153,6.07848424,104730.0,104720.0,0.26949666]
[1750392235804,6.10717824,104730.0,104720.0,0.26949666]
[1750392236506,6.09763006,104730.0,104720.0,0.26949666]
[1750392236714,6.10717824,104730.0,104720.0,0.26949666]
[1750392237560,6.09763006,104730.0,104720.0,0.26949666]
[1750392237771,6.10717814,104730.0,104720.0,0.26949666]
[1750392241199,5.44503832,104730.0,104720.0,0.26949666]
[1750392241431,6.10717878,104730.0,104720.0,0.26949666]
[1750392242062,6.10717924,104730.0,104720.0,0.25994803]
[1750392242272,6.29814694,104730.0,104720.0,0.24085059]
[1750392242479,6.29814694,104730.0,104720.0,0.2503994]
[1750392243234,6.33726694,104730.0,104720.0,0.2503994]
[1750392243732,6.36017845,104730.0,104720.0,0.2503994]
[1750392244059,6.33726694,104730.0,104720.0,0.2503994]
[1750392244502,6.36017845,104730.0,104720.0,0.2503994]
[1750392245017,6.35063046,104730.0,104720.0,0.24085059]
[1750392245255,6.4851742,104730.0,104710.0,0.24110547]
[1750392245443,5.70029354,104720.0,104710.0,0.26188653]
[1750392245648,5.7193908,104720.0,104710.0,0.26188653]
[1750392245855,5.7289397,104720.0,104710.0,0.26188653]
[1750392246465,5.73848879,104720.0,104710.0,0.26188653]
[1750392247597,5.92947427,104720.0,104710.0,0.26188653]
[1750392247834,5.59778692,104720.0,104710.0,0.24157726]
[1750392248044,6.25992674,104720.0,104710.0,0.21057726]
[1750392248285,6.25992674,104720.0,104710.0,0.22967671]
[1750392248500,6.25992674,104720.0,104710.0,0.26197671]
[1750392248715,6.05939199,104720.0,104710.0,0.27152625]
[1750392249176,6.05939199,104720.0,104710.0,0.27273625]
[1750392249819,6.40413747,104720.0,104710.0,0.27273625]
[1750392250236,6.39979276,104720.0,104710.0,0.27273625]
[1750392253285,6.20880728,104720.0,104710.0,0.27273625]
[1750392253914,6.1992581,104720.0,104710.0,0.27273625]
[1750392254119,6.20880728,104720.0,104710.0,0.27273625]
[1750392256081,6.20880728,104720.0,104710.0,0.26318671]
[1750392256297,6.21835655,104720.0,104710.0,0.26318671]
[1750392256962,6.25747655,104720.0,104710.0,0.26318671]
[1750392257383,6.44846203,104720.0,104710.0,0.26318671]
[1750392257588,6.24792728,104720.0,104710.0,0.27273625]
[1750392259726,6.44846203,104720.0,104710.0,0.26318671]
[1750392260363,6.44846203,104720.0,104710.0,0.26197671]
[1750392263250,6.43891313,104720.0,104710.0,0.03287134]
[1750392263446,6.75088477,104720.0,104710.0,0.00057134]
[1750392263839,6.84638551,104720.0,104710.0,0.00057134]
[1750392264066,6.83457036,104720.0,104710.0,0.00057134]
[1750392264804,6.83657036,104720.0,104710.0,0.00057134]
[1750392265463,6.84057036,104720.0,104710.0,0.00057134]
[1750392265928,6.88233247,104720.0,104710.0,0.00057134]
[1750392266139,6.84057036,104720.0,104710.0,0.00057134]
[1750392267218,6.65317748,104720.0,104710.0,0.01847212]
[1750392267435,6.65317748,104720.0,104710.0,0.00057134]
[1750392267670,6.65317748,104720.0,104710.0,0.01847211]
[1750392267887,6.62107748,104720.0,104710.0,0.01847211]
[1750392268583,6.62107748,104720.0,104710.0,0.01847035]
[1750392270132,6.62107748,104720.0,104710.0,0.01847033]
[1750392270584,6.62123748,104720.0,104710.0,0.01847033]
[1750392271057,6.62123748,104720.0,104710.0,0.05107033]
[1750392273195,6.62123748,104720.0,104710.0,0.05107006]
[1750392273621,6.29016757,104720.0,104710.0,0.05107006]
[1750392274519,6.29016757,104720.0,104710.0,0.26117405]
[1750392274737,6.09712757,104720.0,104710.0,0.2611757]
[1750392274951,6.29020757,104720.0,104710.0,0.2719457]
[1750392275165,6.29020757,104720.0,104710.0,0.28149561]
[1750392276945,6.29020757,104720.0,104710.0,0.29104543]
[1750392277370,6.31307699,104720.0,104710.0,0.28149561]
[1750392279008,6.31307699,104720.0,104710.0,0.28149646]
[1750392280294,5.65093717,104720.0,104710.0,0.28149646]
[1750392280519,6.31307699,104720.0,104710.0,0.28149646]
[1750392281868,6.31307699,104720.0,104710.0,0.27194655]
[1750392282311,6.63459763,104720.0,104710.0,0.26117655]
[1750392282526,6.63459763,104720.0,104710.0,0.06062274]
[1750392282990,6.63459763,104720.0,104710.0,0.05107256]
[1750392283640,6.63459763,104720.0,104710.0,0.01847256]
[1750392284979,6.63459763,104720.0,104710.0,0.01847257]
[1750392286534,6.63460044,104720.0,104710.0,0.01847257]
[1750392287699,6.63460044,104720.0,104710.0,0.01847353]
[1750392290634,6.63460044,104720.0,104710.0,0.01847735]
[1750392292781,6.63460044,104720.0,104710.0,0.03477735]
[1750392293093,6.63460044,104720.0,104710.0,0.05037735]
[1750392293583,6.63460044,104720.0,104710.0,0.05039476]
[1750392293812,6.7411256,104720.0,104710.0,0.01849476]
[1750392294022,6.78946966,104720.0,104710.0,0.01849476]
[1750392294591,6.94946966,104720.0,104710.0,0.01849476]
[1750392294925,6.94946966,104720.0,104710.0,0.01849564]
[1750392295711,6.94946966,104720.0,104710.0,0.00057134]
[1750392295904,6.93366966,104720.0,104710.0,0.00057134]
[1750392296129,6.77366966,104720.0,104710.0,0.00057134]
[1750392297718,6.74507937,104720.0,104710.0,0.00057134]